[Event "Early-Titled-Tuesday-Blitz-March-19-2024"]
[Site "Chess.com"]
[Date "2024.03.19"]
[Round "5"]
[White "AryanTari"]
[Black "Lennis93"]
[Result "1-0"]
[WhiteElo "3007"]
[BlackElo "2766"]
[TimeControl "180+1"]
[EndTime "8:56:22 PDT"]
[Termination "AryanTari won on time"]

1. e4 {[%clk 0:02:55.7]} 1... c5 {[%clk 0:02:59.8]} 2. Nc3 {[%clk 0:02:52.3]}
2... Nc6 {[%clk 0:02:59.3]} 3. f3 {[%clk 0:02:48.8]} 3... g6 {[%clk 0:02:49.7]}
4. Bb5 {[%clk 0:02:44.4]} 4... Nd4 {[%clk 0:02:48.1]} 5. Bc4 {[%clk 0:02:43.4]}
5... e6 {[%clk 0:02:47.6]} 6. Nge2 {[%clk 0:02:42.1]} 6... a6 {[%clk 0:02:47.4]}
7. Nxd4 {[%clk 0:02:38.4]} 7... cxd4 {[%clk 0:02:47.3]} 8. Ne2 {[%clk
0:02:39.1]} 8... b5 {[%clk 0:02:45.6]} 9. Bb3 {[%clk 0:02:39.3]} 9... Bg7 {[%clk
0:02:38.4]} 10. d3 {[%clk 0:02:39]} 10... Ne7 {[%clk 0:02:36.8]} 11. O-O {[%clk
0:02:34.5]} 11... d5 {[%clk 0:02:35.7]} 12. a4 {[%clk 0:02:31.1]} 12... Bb7
{[%clk 0:02:00]} 13. Bg5 {[%clk 0:02:30.6]} 13... h6 {[%clk 0:01:33.2]} 14. Bh4
{[%clk 0:01:54.7]} 14... O-O {[%clk 0:01:28.7]} 15. Qd2 {[%clk 0:01:54.5]} 15...
Re8 {[%clk 0:01:16.8]} 16. axb5 {[%clk 0:01:49.3]} 16... axb5 {[%clk 0:01:16.5]}
17. Qb4 {[%clk 0:01:48.4]} 17... Qd7 {[%clk 0:00:29.2]} 18. Rxa8 {[%clk
0:01:46.9]} 18... Bxa8 {[%clk 0:00:28.8]} 19. Ra1 {[%clk 0:01:47.3]} 19... dxe4
{[%clk 0:00:25.2]} 20. fxe4 {[%clk 0:01:41.6]} 20... g5 {[%clk 0:00:17.3]} 21.
Bf2 {[%clk 0:01:41.1]} 21... Ng6 {[%clk 0:00:16.8]} 22. Bxd4 {[%clk 0:01:33.5]}
22... Nf4 {[%clk 0:00:13.6]} 23. Bxg7 {[%clk 0:01:33.6]} 23... Nxe2+ {[%clk
0:00:13.5]} 24. Kf2 {[%clk 0:01:34.3]} 24... Kxg7 {[%clk 0:00:09.4]} 25. Kxe2
{[%clk 0:01:34.7]} 25... Qc7 {[%clk 0:00:08.4]} 26. Qc3+ {[%clk 0:01:33.9]}
26... Qxc3 {[%clk 0:00:08]} 27. bxc3 {[%clk 0:01:34.8]} 27... Bc6 {[%clk
0:00:07.4]} 28. Ra6 {[%clk 0:01:34.2]} 28... Rc8 {[%clk 0:00:07.2]} 29. g3
{[%clk 0:01:31]} 29... Kf6 {[%clk 0:00:07.3]} 30. Ke3 {[%clk 0:01:29.6]} 30...
h5 {[%clk 0:00:07.7]} 31. c4 {[%clk 0:01:26.8]} 31... bxc4 {[%clk 0:00:02.1]}
32. Bxc4 {[%clk 0:01:27.7]} 32... Be8 {[%clk 0:00:02.1]} 33. Bb3 {[%clk
0:01:23.2]} 33... Rb8 {[%clk 0:00:02.2]} 34. d4 {[%clk 0:01:22.6]} 34... Rc8
{[%clk 0:00:02.5]} 35. h4 {[%clk 0:01:18.9]} 35... gxh4 {[%clk 0:00:01.8]} 36.
gxh4 {[%clk 0:01:19.8]} 36... Bd7 {[%clk 0:00:02.2]} 37. Ra7 {[%clk 0:01:17.7]}
37... Rd8 {[%clk 0:00:01.9]} 38. Kf4 {[%clk 0:01:17.3]} 38... Bc6 {[%clk
0:00:01]} 39. c3 {[%clk 0:01:16.9]} 39... Rg8 {[%clk 0:00:01.1]} 40. e5+ {[%clk
0:01:16.4]} 1-0

[Event "Early-Titled-Tuesday-Blitz-March-19-2024"]
[Site "Chess.com"]
[Date "2024.03.19"]
[Round "5"]
[White "AnishOnYoutube"]
[Black "Matibar"]
[Result "1-0"]
[WhiteElo "3030"]
[BlackElo "2777"]
[TimeControl "180+1"]
[EndTime "8:56:23 PDT"]
[Termination "AnishOnYoutube won by resignation"]

1. Nf3 {[%clk 0:03:00.9]} 1... Nf6 {[%clk 0:02:58.9]} 2. c4 {[%clk 0:03:00.3]}
2... g6 {[%clk 0:02:57.4]} 3. g3 {[%clk 0:02:59.7]} 3... Bg7 {[%clk 0:02:57.6]}
4. Bg2 {[%clk 0:03:00.3]} 4... O-O {[%clk 0:02:58.1]} 5. O-O {[%clk 0:03:00.8]}
5... d6 {[%clk 0:02:57.8]} 6. Nc3 {[%clk 0:03:01.2]} 6... c6 {[%clk 0:02:57.7]}
7. Rb1 {[%clk 0:02:58.7]} 7... a5 {[%clk 0:02:56.1]} 8. a3 {[%clk 0:02:57.4]}
8... d5 {[%clk 0:02:49]} 9. cxd5 {[%clk 0:02:55.5]} 9... Nxd5 {[%clk 0:02:47.7]}
10. Qc2 {[%clk 0:02:53.3]} 10... Na6 {[%clk 0:02:35.6]} 11. d3 {[%clk
0:02:52.9]} 11... Bg4 {[%clk 0:02:32.3]} 12. Bd2 {[%clk 0:02:51.5]} 12... Nxc3
{[%clk 0:02:23.6]} 13. Bxc3 {[%clk 0:02:50.7]} 13... Bxf3 {[%clk 0:02:18.4]} 14.
Bxf3 {[%clk 0:02:50.3]} 14... Nc7 {[%clk 0:02:18.6]} 15. Bd2 {[%clk 0:02:38]}
15... a4 {[%clk 0:02:08.7]} 16. Rfd1 {[%clk 0:02:34.9]} 16... Nb5 {[%clk
0:02:06.2]} 17. e3 {[%clk 0:02:35.2]} 17... e5 {[%clk 0:02:05.9]} 18. Bb4 {[%clk
0:02:29.5]} 18... Re8 {[%clk 0:02:05.6]} 19. h4 {[%clk 0:02:29.9]} 19... h5
{[%clk 0:02:02.1]} 20. Kg2 {[%clk 0:02:30]} 20... Qd7 {[%clk 0:02:01.8]} 21. b3
{[%clk 0:02:26.9]} 21... axb3 {[%clk 0:01:57.9]} 22. Qxb3 {[%clk 0:02:27.8]}
22... Nc7 {[%clk 0:01:47.2]} 23. a4 {[%clk 0:02:24.1]} 23... Ne6 {[%clk
0:01:42.3]} 24. a5 {[%clk 0:02:19.6]} 24... Red8 {[%clk 0:01:30.3]} 25. Qc4
{[%clk 0:02:15.8]} 25... Qc7 {[%clk 0:01:23.7]} 26. Bc3 {[%clk 0:02:09.8]} 26...
Rd7 {[%clk 0:01:22.3]} 27. Rb2 {[%clk 0:02:05.1]} 27... Qd8 {[%clk 0:01:11.3]}
28. Rdb1 {[%clk 0:01:32.7]} 28... Rxd3 {[%clk 0:00:54.9]} 29. Be4 {[%clk
0:01:32.6]} 29... Rxc3 {[%clk 0:00:15.6]} 30. Qxc3 {[%clk 0:01:32.6]} 30... Qxa5
{[%clk 0:00:16.5]} 31. Qxa5 {[%clk 0:01:30.4]} 31... Rxa5 {[%clk 0:00:17.4]} 32.
Rxb7 {[%clk 0:01:30.8]} 32... Rc5 {[%clk 0:00:16.1]} 33. R7b6 {[%clk 0:01:28.6]}
33... Bf8 {[%clk 0:00:14.6]} 34. Bxc6 {[%clk 0:01:24.5]} 34... Kg7 {[%clk
0:00:14.4]} 35. Be4 {[%clk 0:01:20.7]} 35... Kf6 {[%clk 0:00:14.1]} 36. Ra6
{[%clk 0:01:18.8]} 36... Be7 {[%clk 0:00:14]} 37. Rb7 {[%clk 0:01:16.6]} 37...
Bd8 {[%clk 0:00:06.8]} 38. Bb1 {[%clk 0:01:16.5]} 38... Rc7 {[%clk 0:00:03.9]}
39. Rxc7 {[%clk 0:01:14.2]} 39... Bxc7 {[%clk 0:00:04.8]} 40. Ba2 {[%clk
0:01:14.7]} 40... Ke7 {[%clk 0:00:05.1]} 41. Bxe6 {[%clk 0:01:14.6]} 41... fxe6
{[%clk 0:00:06]} 42. Kf3 {[%clk 0:01:15.1]} 1-0

[Event "Early-Titled-Tuesday-Blitz-March-19-2024"]
[Site "Chess.com"]
[Date "2024.03.19"]
[Round "5"]
[White "rikchessmx"]
[Black "EternalNight8"]
[Result "0-1"]
[WhiteElo "2286"]
[BlackElo "2503"]
[TimeControl "180+1"]
[EndTime "8:56:25 PDT"]
[Termination "EternalNight8 won by resignation"]

1. e4 {[%clk 0:03:00.9]} 1... e5 {[%clk 0:02:59.4]} 2. Nf3 {[%clk 0:03:00.4]}
2... Nf6 {[%clk 0:02:59.8]} 3. d3 {[%clk 0:02:56.3]} 3... Nc6 {[%clk 0:02:58.2]}
4. c3 {[%clk 0:02:56.1]} 4... d5 {[%clk 0:02:53.5]} 5. Qc2 {[%clk 0:02:56]} 5...
Be7 {[%clk 0:02:46.6]} 6. h3 {[%clk 0:02:55.9]} 6... O-O {[%clk 0:02:41.8]} 7.
Be3 {[%clk 0:02:55.2]} 7... h6 {[%clk 0:02:35.8]} 8. g4 {[%clk 0:02:50.9]} 8...
dxe4 {[%clk 0:02:27.8]} 9. dxe4 {[%clk 0:02:50.2]} 9... Be6 {[%clk 0:02:27.8]}
10. Nbd2 {[%clk 0:02:49.6]} 10... a6 {[%clk 0:02:05.6]} 11. Bc4 {[%clk
0:02:48.1]} 11... b5 {[%clk 0:01:57.4]} 12. Bxe6 {[%clk 0:02:47.5]} 12... fxe6
{[%clk 0:01:58.3]} 13. O-O-O {[%clk 0:02:46.5]} 13... Qc8 {[%clk 0:01:46]} 14.
Rdg1 {[%clk 0:02:44.7]} 14... b4 {[%clk 0:01:41.9]} 15. c4 {[%clk 0:02:37]}
15... Qb7 {[%clk 0:01:30.3]} 16. h4 {[%clk 0:02:35.7]} 16... b3 {[%clk
0:01:17.9]} 17. Qxb3 {[%clk 0:02:28.1]} 17... Qxb3 {[%clk 0:01:16.2]} 18. axb3
{[%clk 0:02:26.5]} 18... a5 {[%clk 0:01:08.1]} 19. g5 {[%clk 0:02:24.5]} 19...
hxg5 {[%clk 0:01:07.5]} 20. hxg5 {[%clk 0:02:24.5]} 20... Nd7 {[%clk 0:01:06.8]}
21. g6 {[%clk 0:02:13.9]} 21... Nc5 {[%clk 0:00:54.9]} 22. Bxc5 {[%clk
0:02:10.4]} 22... Bxc5 {[%clk 0:00:55.8]} 23. Rg2 {[%clk 0:02:05.2]} 23... Ne7
{[%clk 0:00:41]} 24. Nxe5 {[%clk 0:01:59]} 24... Rxf2 {[%clk 0:00:40.4]} 25.
Rxf2 {[%clk 0:01:49.2]} 25... Bxf2 {[%clk 0:00:41.3]} 26. Nf7 {[%clk 0:01:44.8]}
26... Nxg6 {[%clk 0:00:40.8]} 27. Ng5 {[%clk 0:01:37.3]} 27... Be3 {[%clk
0:00:40.9]} 28. Nxe6 {[%clk 0:01:35.6]} 28... Re8 {[%clk 0:00:39.6]} 29. Nxc7
{[%clk 0:01:32.4]} 29... Rxe4 {[%clk 0:00:37.6]} 30. Kc2 {[%clk 0:01:24.4]}
30... Bxd2 {[%clk 0:00:37.7]} 31. Kxd2 {[%clk 0:01:24.2]} 31... a4 {[%clk
0:00:37.6]} 32. Kd3 {[%clk 0:01:21.4]} 32... Re7 {[%clk 0:00:36.4]} 33. Nd5
{[%clk 0:01:21]} 33... Rb7 {[%clk 0:00:36.1]} 34. bxa4 {[%clk 0:01:20.1]} 34...
Rxb2 {[%clk 0:00:36.3]} 35. Ra1 {[%clk 0:01:18.2]} 35... Ne5+ {[%clk 0:00:34.7]}
36. Kd4 {[%clk 0:01:18.2]} 36... Nc6+ {[%clk 0:00:32.7]} 37. Kc5 {[%clk
0:01:18.4]} 37... Na5 {[%clk 0:00:32.6]} 38. Nb4 {[%clk 0:01:11]} 38... Nb3+
{[%clk 0:00:32]} 39. Kb5 {[%clk 0:01:07.1]} 39... Nxa1 {[%clk 0:00:32.9]} 40. a5
{[%clk 0:01:07.3]} 40... Nc2 {[%clk 0:00:33]} 41. a6 {[%clk 0:01:06.4]} 41...
Rxb4+ {[%clk 0:00:33.6]} 42. Ka5 {[%clk 0:01:06.5]} 42... Rb1 {[%clk 0:00:31.8]}
43. a7 {[%clk 0:01:06.3]} 43... Ra1+ {[%clk 0:00:32]} 44. Kb6 {[%clk 0:01:05.9]}
44... Ne3 {[%clk 0:00:29.2]} 45. c5 {[%clk 0:01:05.7]} 45... Nd5+ {[%clk
0:00:27.6]} 46. Kb7 {[%clk 0:01:05.7]} 46... g5 {[%clk 0:00:26.1]} 47. a8=Q+
{[%clk 0:01:05.9]} 47... Rxa8 {[%clk 0:00:26.1]} 48. Kxa8 {[%clk 0:01:06.8]}
48... Kf7 {[%clk 0:00:25.8]} 49. Kb7 {[%clk 0:01:07.7]} 49... Ke6 {[%clk
0:00:25.9]} 50. Kc6 {[%clk 0:01:08.6]} 50... g4 {[%clk 0:00:26]} 51. Kb5 {[%clk
0:01:08.5]} 51... g3 {[%clk 0:00:26]} 52. c6 {[%clk 0:01:09.4]} 52... g2 {[%clk
0:00:26.3]} 0-1

[Event "Early-Titled-Tuesday-Blitz-March-19-2024"]
[Site "Chess.com"]
[Date "2024.03.19"]
[Round "5"]
[White "martinmena"]
[Black "kleber2007"]
[Result "0-1"]
[WhiteElo "2271"]
[BlackElo "2461"]
[TimeControl "180+1"]
[EndTime "8:56:25 PDT"]
[Termination "kleber2007 won on time"]

1. c4 {[%clk 0:03:00.9]} 1... e6 {[%clk 0:02:49.8]} 2. g3 {[%clk 0:03:01.3]}
2... Nf6 {[%clk 0:02:49.5]} 3. Bg2 {[%clk 0:03:01.8]} 3... d5 {[%clk 0:02:50.2]}
4. Nf3 {[%clk 0:03:02.1]} 4... c5 {[%clk 0:02:48]} 5. O-O {[%clk 0:03:00.3]}
5... Nc6 {[%clk 0:02:45.4]} 6. cxd5 {[%clk 0:02:59.2]} 6... exd5 {[%clk
0:02:44.9]} 7. d4 {[%clk 0:02:59.5]} 7... Be7 {[%clk 0:02:43.2]} 8. Nc3 {[%clk
0:02:53.4]} 8... O-O {[%clk 0:02:41.4]} 9. Bg5 {[%clk 0:02:44.4]} 9... c4 {[%clk
0:02:40.6]} 10. Ne5 {[%clk 0:02:34.5]} 10... Be6 {[%clk 0:02:40.1]} 11. Nxc6
{[%clk 0:02:25]} 11... bxc6 {[%clk 0:02:41]} 12. e3 {[%clk 0:01:51.8]} 12... Qb6
{[%clk 0:02:15.7]} 13. Na4 {[%clk 0:01:34.7]} 13... Qb4 {[%clk 0:02:06.9]} 14.
a3 {[%clk 0:01:29]} 14... Qb5 {[%clk 0:02:02.3]} 15. Bxf6 {[%clk 0:01:16.9]}
15... Bxf6 {[%clk 0:02:01.1]} 16. Nc5 {[%clk 0:01:16.4]} 16... Bf5 {[%clk
0:01:50.8]} 17. b3 {[%clk 0:00:55.6]} 17... c3 {[%clk 0:01:37.5]} 18. e4 {[%clk
0:00:23.1]} 18... dxe4 {[%clk 0:01:31.1]} 19. Bxe4 {[%clk 0:00:19.8]} 19... Bh3
{[%clk 0:01:10.3]} 20. Bxh7+ {[%clk 0:00:02.2]} 20... Kxh7 {[%clk 0:01:09.7]}
21. Qh5+ {[%clk 0:00:02.6]} 21... Kg8 {[%clk 0:01:10.2]} 22. Qxh3 {[%clk
0:00:03.2]} 22... Bxd4 {[%clk 0:01:04.7]} 23. Nd7 {[%clk 0:00:02.6]} 23... Rfd8
{[%clk 0:01:00.5]} 24. Rad1 {[%clk 0:00:02.7]} 24... c5 {[%clk 0:00:59.1]} 25.
Rc1 {[%clk 0:00:01]} 25... Qxd7 {[%clk 0:00:58.3]} 26. Qg2 {[%clk 0:00:01.1]}
26... Rab8 {[%clk 0:00:57.7]} 27. Rfd1 {[%clk 0:00:01.5]} 27... Qb7 {[%clk
0:00:47.6]} 0-1

[Event "Early-Titled-Tuesday-Blitz-March-19-2024"]
[Site "Chess.com"]
[Date "2024.03.19"]
[Round "5"]
[White "Szachulec75"]
[Black "DmitriiZakurdaev"]
[Result "1-0"]
[WhiteElo "2228"]
[BlackElo "2406"]
[TimeControl "180+1"]
[EndTime "8:56:25 PDT"]
[Termination "Szachulec75 won by resignation"]

1. Nf3 {[%clk 0:03:00.9]} 1... d5 {[%clk 0:02:56.6]} 2. g3 {[%clk 0:02:59.2]}
2... Nf6 {[%clk 0:02:56.5]} 3. Bg2 {[%clk 0:03:00.1]} 3... e6 {[%clk 0:02:57.2]}
4. d3 {[%clk 0:03:00.4]} 4... Be7 {[%clk 0:02:57.8]} 5. O-O {[%clk 0:03:00.7]}
5... O-O {[%clk 0:02:58.5]} 6. Nbd2 {[%clk 0:03:00.2]} 6... c5 {[%clk
0:02:59.4]} 7. e4 {[%clk 0:03:00.5]} 7... Nc6 {[%clk 0:03:00.1]} 8. e5 {[%clk
0:03:00.8]} 8... Nd7 {[%clk 0:02:59.8]} 9. Re1 {[%clk 0:03:01.1]} 9... Qc7
{[%clk 0:02:57.6]} 10. Qe2 {[%clk 0:02:59.9]} 10... b5 {[%clk 0:02:55.9]} 11. h4
{[%clk 0:02:59.2]} 11... a5 {[%clk 0:02:49.9]} 12. c3 {[%clk 0:02:59.1]} 12...
Ba6 {[%clk 0:02:49]} 13. Nf1 {[%clk 0:02:57.2]} 13... Rfd8 {[%clk 0:02:48.2]}
14. Bf4 {[%clk 0:02:55.8]} 14... Nf8 {[%clk 0:02:47.9]} 15. h5 {[%clk
0:02:55.3]} 15... h6 {[%clk 0:02:48]} 16. N1h2 {[%clk 0:02:55.2]} 16... Nh7
{[%clk 0:02:48.2]} 17. Ng4 {[%clk 0:02:53.9]} 17... Bf8 {[%clk 0:02:44.8]} 18.
Rac1 {[%clk 0:02:25.5]} 18... b4 {[%clk 0:02:38.9]} 19. c4 {[%clk 0:02:22.5]}
19... Rac8 {[%clk 0:02:25.6]} 20. b3 {[%clk 0:02:14.5]} 20... a4 {[%clk
0:02:18.2]} 21. Rc2 {[%clk 0:01:41.8]} 21... Na5 {[%clk 0:02:12.1]} 22. Rb2
{[%clk 0:01:39]} 22... Rd7 {[%clk 0:02:07.6]} 23. Qe3 {[%clk 0:01:36.7]} 23...
Rcd8 {[%clk 0:02:05.6]} 24. Nf6+ {[%clk 0:01:33.6]} 24... gxf6 {[%clk
0:02:04.8]} 25. exf6 {[%clk 0:01:33.6]} 25... Bd6 {[%clk 0:02:03.1]} 26. Bxh6
{[%clk 0:01:05.1]} 26... dxc4 {[%clk 0:01:32.9]} 27. dxc4 {[%clk 0:01:03.8]}
27... Bxc4 {[%clk 0:01:33]} 28. bxc4 {[%clk 0:00:51.2]} 28... Nxc4 {[%clk
0:01:32.6]} 29. Qe4 {[%clk 0:00:51.5]} 29... Nxf6 {[%clk 0:01:20.2]} 30. Qxc4
{[%clk 0:00:50.2]} 30... Bxg3 {[%clk 0:00:43.5]} 31. Bg5 {[%clk 0:00:46.6]}
31... Nxh5 {[%clk 0:00:16.5]} 32. Bxd8 {[%clk 0:00:45.3]} 1-0

[Event "Early-Titled-Tuesday-Blitz-March-19-2024"]
[Site "Chess.com"]
[Date "2024.03.19"]
[Round "5"]
[White "ahmedkandiliii"]
[Black "javierfreilemartin"]
[Result "1-0"]
[WhiteElo "2499"]
[BlackElo "2297"]
[TimeControl "180+1"]
[EndTime "8:56:27 PDT"]
[Termination "ahmedkandiliii won by resignation"]

1. c4 {[%clk 0:02:55.3]} 1... e5 {[%clk 0:02:58.2]} 2. g3 {[%clk 0:02:47.5]}
2... Nf6 {[%clk 0:02:56.2]} 3. Bg2 {[%clk 0:02:47.2]} 3... Bc5 {[%clk
0:02:56.2]} 4. Nc3 {[%clk 0:02:46.5]} 4... O-O {[%clk 0:02:55.7]} 5. e3 {[%clk
0:02:46]} 5... Re8 {[%clk 0:02:55.7]} 6. Nge2 {[%clk 0:02:46.3]} 6... Nc6 {[%clk
0:02:54.7]} 7. O-O {[%clk 0:02:45.7]} 7... e4 {[%clk 0:02:51.9]} 8. d4 {[%clk
0:02:45.5]} 8... exd3 {[%clk 0:02:49.2]} 9. Qxd3 {[%clk 0:02:45.5]} 9... a6
{[%clk 0:02:44.1]} 10. a3 {[%clk 0:02:42.7]} 10... Bf8 {[%clk 0:02:39.2]} 11. b4
{[%clk 0:02:41.5]} 11... d6 {[%clk 0:02:39]} 12. Bb2 {[%clk 0:02:41]} 12... g6
{[%clk 0:02:37.7]} 13. Nd5 {[%clk 0:02:39.9]} 13... Bg7 {[%clk 0:02:30]} 14. Qc3
{[%clk 0:02:36.9]} 14... Ne5 {[%clk 0:02:26.7]} 15. Rad1 {[%clk 0:02:27.6]}
15... Nxd5 {[%clk 0:02:05.8]} 16. Rxd5 {[%clk 0:02:23.2]} 16... Nf3+ {[%clk
0:02:04.5]} 17. Bxf3 {[%clk 0:02:20.8]} 17... Bxc3 {[%clk 0:02:04.9]} 18. Bxc3
{[%clk 0:02:20.3]} 18... Be6 {[%clk 0:02:02.9]} 19. Rd4 {[%clk 0:02:18.5]} 19...
Qc8 {[%clk 0:02:00.6]} 20. h4 {[%clk 0:02:15.2]} 20... c5 {[%clk 0:02:00.5]} 21.
Rxd6 {[%clk 0:02:06.6]} 21... cxb4 {[%clk 0:02:00.5]} 22. axb4 {[%clk
0:02:05.6]} 22... Qxc4 {[%clk 0:01:59.8]} 23. Bf6 {[%clk 0:01:53.7]} 23... Rac8
{[%clk 0:01:53.4]} 24. h5 {[%clk 0:01:51.6]} 24... Bg4 {[%clk 0:01:47.9]} 25.
Rd4 {[%clk 0:01:46.1]} 25... Qe6 {[%clk 0:01:43.1]} 26. Bxg4 {[%clk 0:01:41.6]}
26... Qxf6 {[%clk 0:01:43.1]} 27. Bxc8 {[%clk 0:01:42.5]} 27... Rxc8 {[%clk
0:01:41.8]} 28. hxg6 {[%clk 0:01:41.9]} 28... hxg6 {[%clk 0:01:41.4]} 29. Nf4
{[%clk 0:01:42.5]} 29... Kg7 {[%clk 0:01:27.6]} 30. Rfd1 {[%clk 0:01:41.1]}
30... Qf5 {[%clk 0:01:15.1]} 31. Rd7 {[%clk 0:01:37.4]} 31... Rh8 {[%clk
0:01:07]} 32. Rc7 {[%clk 0:01:20.6]} 32... Qe4 {[%clk 0:00:45.9]} 33. Ng2 {[%clk
0:01:20.5]} 33... Qxb4 {[%clk 0:00:45.6]} 34. Ne1 {[%clk 0:01:06.7]} 34... b5
{[%clk 0:00:45]} 35. Nf3 {[%clk 0:01:03.7]} 35... Qg4 {[%clk 0:00:42.7]} 36.
Rxf7+ {[%clk 0:01:00.3]} 36... Kh6 {[%clk 0:00:41.1]} 37. Kg2 {[%clk 0:01:00.2]}
1-0

[Event "Early-Titled-Tuesday-Blitz-March-19-2024"]
[Site "Chess.com"]
[Date "2024.03.19"]
[Round "5"]
[White "PLAYER_2006_M"]
[Black "Defend1r"]
[Result "1-0"]
[WhiteElo "2937"]
[BlackElo "2728"]
[TimeControl "180+1"]
[EndTime "8:56:29 PDT"]
[Termination "PLAYER_2006_M won by resignation"]

1. e4 {[%clk 0:03:00.9]} 1... c5 {[%clk 0:02:52.6]} 2. Nf3 {[%clk 0:02:59.5]}
2... d6 {[%clk 0:02:51.7]} 3. Nc3 {[%clk 0:02:57.6]} 3... Nf6 {[%clk 0:02:51.6]}
4. e5 {[%clk 0:02:57.7]} 4... dxe5 {[%clk 0:02:50.7]} 5. Nxe5 {[%clk 0:02:58.6]}
5... e6 {[%clk 0:02:47.7]} 6. g3 {[%clk 0:02:41.8]} 6... Bd6 {[%clk 0:02:33.4]}
7. Nc4 {[%clk 0:02:40.8]} 7... Be7 {[%clk 0:02:22.4]} 8. Bg2 {[%clk 0:02:40.8]}
8... O-O {[%clk 0:02:22.3]} 9. O-O {[%clk 0:02:40.6]} 9... Nc6 {[%clk
0:02:15.3]} 10. d3 {[%clk 0:02:39.8]} 10... Nd4 {[%clk 0:02:05.3]} 11. a4 {[%clk
0:02:36.4]} 11... Rb8 {[%clk 0:01:57]} 12. Bf4 {[%clk 0:02:28.9]} 12... Ra8
{[%clk 0:01:55]} 13. Nb5 {[%clk 0:02:29.4]} 13... Nxb5 {[%clk 0:01:38.2]} 14.
axb5 {[%clk 0:02:30.3]} 14... Nd5 {[%clk 0:01:35]} 15. Bd2 {[%clk 0:02:21]}
15... Bd7 {[%clk 0:01:35]} 16. Ne5 {[%clk 0:02:17.7]} 16... Bf6 {[%clk 0:01:20]}
17. Nxd7 {[%clk 0:02:15.2]} 17... Qxd7 {[%clk 0:01:20.3]} 18. c3 {[%clk
0:01:44.3]} 18... a6 {[%clk 0:00:45]} 19. bxa6 {[%clk 0:01:41.4]} 19... Rxa6
{[%clk 0:00:45.9]} 20. Rxa6 {[%clk 0:01:40.8]} 20... bxa6 {[%clk 0:00:46.8]} 21.
Qc2 {[%clk 0:01:33.2]} 21... Rb8 {[%clk 0:00:44.6]} 22. Ra1 {[%clk 0:01:32]}
22... Qb5 {[%clk 0:00:35.3]} 23. Bc1 {[%clk 0:01:30.7]} 23... Qb6 {[%clk
0:00:30.6]} 24. Be4 {[%clk 0:01:22.3]} 24... g6 {[%clk 0:00:27.4]} 25. Kg2
{[%clk 0:01:21.7]} 25... Qd6 {[%clk 0:00:25.1]} 26. Qa4 {[%clk 0:01:20.1]} 26...
Rb6 {[%clk 0:00:25.1]} 27. Ra2 {[%clk 0:01:08.2]} 27... Kg7 {[%clk 0:00:24.9]}
28. h4 {[%clk 0:01:06.1]} 28... h6 {[%clk 0:00:24.2]} 29. Qe8 {[%clk 0:01:03.9]}
29... Ne7 {[%clk 0:00:23.8]} 30. Bf4 {[%clk 0:00:59.3]} 30... Qd7 {[%clk
0:00:23.3]} 31. Qxd7 {[%clk 0:00:58.9]} 31... e5 {[%clk 0:00:04.3]} 32. Be3
{[%clk 0:00:57.2]} 32... Re6 {[%clk 0:00:02.3]} 33. Bxc5 {[%clk 0:00:56.8]}
33... Nf5 {[%clk 0:00:02.6]} 34. Bd5 {[%clk 0:00:56]} 1-0

[Event "Early-Titled-Tuesday-Blitz-March-19-2024"]
[Site "Chess.com"]
[Date "2024.03.19"]
[Round "5"]
[White "JonaszBaum"]
[Black "tusplingher"]
[Result "1-0"]
[WhiteElo "2737"]
[BlackElo "2474"]
[TimeControl "180+1"]
[EndTime "8:56:31 PDT"]
[Termination "JonaszBaum won on time"]

1. e4 {[%clk 0:03:00.9]} 1... c5 {[%clk 0:02:59.5]} 2. Nf3 {[%clk 0:03:00.1]}
2... d6 {[%clk 0:02:59.2]} 3. d4 {[%clk 0:02:57]} 3... cxd4 {[%clk 0:02:59.3]}
4. Nxd4 {[%clk 0:02:57.9]} 4... Nf6 {[%clk 0:02:59.7]} 5. Nc3 {[%clk 0:02:58.4]}
5... a6 {[%clk 0:02:59.4]} 6. h3 {[%clk 0:02:56.1]} 6... e5 {[%clk 0:02:55.8]}
7. Nde2 {[%clk 0:02:53.4]} 7... Be7 {[%clk 0:02:47.1]} 8. g4 {[%clk 0:02:44]}
8... h6 {[%clk 0:02:31.2]} 9. Bg2 {[%clk 0:02:43.5]} 9... Be6 {[%clk 0:02:27.3]}
10. Be3 {[%clk 0:02:42.3]} 10... Nbd7 {[%clk 0:02:25]} 11. Nd5 {[%clk
0:02:36.3]} 11... Rc8 {[%clk 0:02:10.5]} 12. Qd2 {[%clk 0:02:26.7]} 12... Nc5
{[%clk 0:01:55]} 13. Nec3 {[%clk 0:02:11.6]} 13... b5 {[%clk 0:01:54.7]} 14. a3
{[%clk 0:02:09.5]} 14... Nxd5 {[%clk 0:01:06.5]} 15. exd5 {[%clk 0:01:56.3]}
15... Bd7 {[%clk 0:01:06.6]} 16. b4 {[%clk 0:01:56.3]} 16... Na4 {[%clk
0:01:01.4]} 17. Ne4 {[%clk 0:01:50.4]} 17... Nb2 {[%clk 0:00:52.7]} 18. O-O
{[%clk 0:01:29.2]} 18... Nc4 {[%clk 0:00:47.7]} 19. Qe2 {[%clk 0:01:29.2]} 19...
O-O {[%clk 0:00:42.6]} 20. Ng3 {[%clk 0:01:20.2]} 20... Nxe3 {[%clk 0:00:20.3]}
21. fxe3 {[%clk 0:01:21.1]} 21... Qb6 {[%clk 0:00:19.4]} 22. Be4 {[%clk
0:01:17.3]} 22... Bg5 {[%clk 0:00:18.1]} 23. Rf3 {[%clk 0:01:08.8]} 23... Rc3
{[%clk 0:00:18.3]} 24. Bd3 {[%clk 0:01:06.3]} 24... a5 {[%clk 0:00:07.3]} 25.
Ne4 {[%clk 0:01:00.7]} 25... Rc7 {[%clk 0:00:07.4]} 26. bxa5 {[%clk 0:00:54.6]}
26... Qxa5 {[%clk 0:00:07.6]} 27. Nxd6 {[%clk 0:00:53.9]} 27... Qc3 {[%clk
0:00:06.5]} 28. Raf1 {[%clk 0:00:52.9]} 28... Qxa3 {[%clk 0:00:04.9]} 29. Nxf7
{[%clk 0:00:49.6]} 29... Bxg4 {[%clk 0:00:03.6]} 30. Nxh6+ {[%clk 0:00:45.5]}
1-0